Workbook

Sheet Sheet2
A1: 怀化高新区2024年第一季度企业信息一览表
A2: 序号 | B2: 企业名称 | C2: 统一社会信用代码 | D2: 经营情况 | E2: 企业类型 | F2: 产业链分类 | G2: 产业链链长 | H2: 入园时间 | I2: 入规时间 | J2: 包保部门 | N2: 主要产品 | O2: 主要原材料 | S2: 物流信息 | Y2: 企业改扩产情况表 | AD2: 厂房性质 | AH2: 产值情况（万元） | AL2: 产值情况（万元） | AO2: 税收情况（万元） | AR2: 用电情况（万度） | AU2: 用工人数 (个) | AV2: 天然气m³ | AW2: 备注
J3: 包保部门 | K3: 包保领导 | L3: 包保责任人 | M3: 企业联系人及联系电话 | O3: 原材料名称 | P3: 供应商 | Q3: 产地 | R3: 年采购价值 | S3: 货物名称 | T3: 起运地 | U3: 目的地 | V3: 运输方式（公、铁、空、海） | W3: 年物流费用（万元） | X3: 合作公司 | Y3: 项目名称 | Z3: 新增投资（万元） | AA3: 预计年新增产值 （万元） | AB3: 预计实现税收 （万元） | AC3: 具体项目内容 | AD3: 总面积 | AE3: 租赁 | AF3: 自建 | AH3: 上年产值 | AI3: 本年已完成产值 | AJ3: 本年预计产值 | AK3: 本年产值完成进度% | AL3: 本年第一季度 | AM3: 上年第一季度 | AN3: 产值增速% | AO3: 本年第一季度税收 | AP3: 上年第一季度税收 | AQ3: 税收增速% | AR3: 本年第一季度用电 | AS3: 上年第一季度用电 | AT3: 用电增速%
AF4: 占地面积 | AG4: 建筑面积

Sheet Sheet2 (2)
A1: 怀化高新区2024年（1-3月）企业信息一览表
A2: 序号 | B2: 企业名称 | C2: 统一社会信用代码 | D2: 经营情况 | E2: 企业类型 | F2: 产业链分类 | G2: 产业链链长 | H2: 入园时间 | I2: 入规时间 | J2: 包保部门 | N2: 主要产品 | O2: 主要原材料 | S2: 物流信息 | Y2: 企业改扩产情况表 | AD2: 厂房性质 | AH2: 产值情况（万元） | AL2: 产值情况（万元） | AO2: 税收情况（万元） | AR2: 用电情况（万度） | AU2: 用工人数 (个) | AV2: 天然气m³ | AW2: 备注
J3: 包保部门 | K3: 包保领导 | L3: 包保责任人 | M3: 企业联系人及联系电话 | O3: 原材料名称 | P3: 供应商 | Q3: 产地 | R3: 年采购价值 | S3: 货物名称 | T3: 起运地 | U3: 目的地 | V3: 运输方式（公、铁、空、海） | W3: 年物流费用（万元） | X3: 合作公司 | Y3: 项目名称 | Z3: 新增投资（万元） | AA3: 预计年新增产值 （万元） | AB3: 预计实现税收 （万元） | AC3: 具体项目内容 | AD3: 总面积 | AE3: 租赁 | AF3: 自建 | AH3: 2023年产值 | AI3: 2024年已完成产值 | AJ3: 2024年预计产值 | AK3: 2024年产值完成进度% | AL3: 2024年1-3月 | AM3: 2023年1-3月 | AN3: 增速% | AO3: 2024年1-3月 | AP3: 2023年1-3月 | AQ3: 增速% | AR3: 2024年1-3月 | AS3: 2023年1-3月 | AT3: 增速%
AF4: 占地面积 | AG4: 建筑面积
A5: 1 | B5: 湖南正清制药集团股份有限公司 | C5: 91431200183808108W | D5: 正常经营 | E5: 规上 | F5: 现代医药健康产业链 | G5: 滕建华 | H5: 2014年 | I5: 2014年 | J5: 财政局 | K5: 滕建华 | L5: 杨美云15211521717 黄智奇17398718577 | M5: 吴飞驰13975156288 | N5: 正清风痛宁系列、清热解毒系列、灵芝口服液系列、鱼腥草系列 | O5: 青风藤 | P5: 溆浦俞龙、陕西宣博、陕西永嘉 | Q5: 陕西、湖北 | R5: 1000 | AD5: 50487.42 | AE5: / | AF5: 17256.9 | AG5: 39667.7 | AH5: 50600 | AI5: 7288.459 | AJ5: 60231 | AK5: 0.1210084342 | AL5: 7288.459 | AM5: 8521 | AN5: =AL5/AM5-1 -> -0.1446474592 | AO5: 744.12 | AP5: 1979.6 | AQ5: -0.62410588 | AR5: 65.7702 | AS5: 66.0044 | AT5: =AR5/AS5-1 -> -0.003548248299 | AU5: 292
O6: 羟丙甲纤维素 | P6: 卡陆康 | Q6: 进口物料，美国 | R6: 337
O7: 预胶化淀粉 | P7: 卡陆康 | Q7: 进口物料，美国 | R7: 79
O8: 药用乙醇 | P8: 怀化利丰、长沙大江 | Q8: 吉林、广西 | R8: 224
O9: 金银花 | P9: 溆浦俞龙、亳州精草、湖南五溪 | Q9: 山东平邑、河北巨鹿等 | R9: 169
O10: 龙胆 | P10: 亳州精草 | Q10: 辽宁等 | R10: 62
O11: 连翘 | P11: 山西振东 | Q11: 山西绛县等 | R11: 129
O12: 灵芝 | P12: 溆浦俞龙 | Q12: 山东冠县等 | R12: 142
O13: 鱼腥草 | P13: 中方绿色田野合作社 | Q13: 中方新建 | R13: 2
A14: 2 | B14: 湖南省德达医疗技术有限公司 | C14: 91431200MABRUAE608 | D14: 正常经营 | H14: 2020-04-01 | I14: 2022年 | J14: 财政局 | K14: 滕建华 | L14: 谢 辉13647450401 粟 雪13407456505 | M14: 李志勇18932199789 | N14: 家用保健型氧气机、家庭用医用制氧机、模块化医疗机构用分子筛制氧系统、高原弥散式制氧机、车载旅游军用便携式制氧机。 | O14: 分子筛 | P14: 上海恒业微晶材料科技股份有限公司 | Q14: 上海市 | R14: 1532 | AD14: 34000 | AE14: 34000 | AF14: / | AG14: / | AH14: 3443 | AI14: 4075.602 | AJ14: 17000 | AK14: 0.2397412941 | AL14: 4075.602 | AM14: 6173.294 | AN14: =AL14/AM14-1 -> -0.3398010851 | AO14: 70.24 | AP14: 168.43 | AQ14: -0.5829721546 | AR14: 33.1178 | AS14: 34.0776 | AT14: =AR14/AS14-1 -> -0.028165129 | AU14: 78
O15: 压缩机 | P15: 深圳联创机电有限公司 | Q15: 深圳市 | R15: 1367
O16: PCBA | P16: 深圳和泰云智能科技有限公司 | Q16: 深圳市 | R16: 1175
O17: 压缩机 | P17: 台州宝乾机电股份有限公司 | Q17: 浙江玉环市 | R17: 627
O18: 压缩机 | P18: 东莞精捷瑞达机电有限公司 | Q18: 东莞市 | R18: 357
A19: 3 | B19: 湖南天骑生物科技有限公司 | C19: 9143120035165687X4 | D19: 正常经营 | H19: 2019年 | I19: 2023年 | J19: 财政局 | K19: 滕建华 | L19: 洪 盖15115285278 肖秋霞15974016321 | M19: 凌燕 19145988037 | N19: 试剂盒和染色液 、定制式止鼾器、制片机 | O19: 牙胶片 | P19: 上海复星 | Q19: 德国 | R19: 6 | AD19: 4500 | AE19: 1500 | AG19: 3000 | AH19: 629 | AI19: 168.22 | AJ19: 650 | AK19: 0.2588 | AL19: 170.373 | AM19: 101.704 | AN19: =AL19/AM19-1 -> 0.6751848502 | AO19: 4.76 | AP19: 46.16 | AQ19: -0.8968804159 | AR19: 1.65 | AS19: 1.883 | AT19: =AR19/AS19-1 -> -0.1237387148 | AU19: 12
O20: 夹层杯 | P20: 慈溪市腾飞电子器材厂 | Q20: 浙江 | R20: 16
O21: 碱性品红 | P21: 怀化科之源化玻仪器有限公司 | Q21: 湖南 | R21: 2
A22: 4 | B22: 湖南五溪药业有限公司 | C22: 91431200MA7G8XEX7U | D22: 正常经营 | H22: 2022年 | I22: 2024年 | J22: 财政局 | K22: 滕建华 | L22: 张家铭17365786887 姚果果18974525469 | M22: 李志国18942050001 | N22: 中草药（涉及300余品种、700余种规格） | O22: 各种中药材原料 | P22: 保密 | Q22: 全国各地（贵州、邵阳） | R22: / | AD22: 4500 | AE22: 4500 | AF22: / | AG22: / | AH22: 4200 | AI22: 1168 | AJ22: 7000 | AK22: 0.1668571429 | AL22: 1166.508 | AM22: 460.194 | AN22: 1.534817925 | AO22: 17.79 | AP22: 0.13 | AQ22: 135.8461538 | AR22: 2.63 | AS22: 1.2984 | AT22: 1.025569932 | AU22: 21
A23: 5 | B23: 湖南兴怀新材料科技有限公司 | C23: 91431200MA4TC4MB7J | D23: 正常经营 | E23: 规上 | F23: 新型显示产业链 | G23: 郑紫庭 | H23: 2021年 | I23: 2022年 | J23: 内审法务专项工作 | K23: 向 华 郑紫庭 | L23: 肖 锋137629072127 | M23: 宋述远18653347647 | N23: 盖板玻璃 | O23: 石英砂 | P23: 九江杰壤矿业有限公司、湖南鸿新实业有限 | Q23: 江西九江、湖南溆浦 | R23: 1295 | AD23: 200000 | AE23: / | AF23: 200000 | AG23: 134264 | AH23: 55373 | AI23: 15973.586 | AJ23: 120000 | AK23: 0.1331132167 | AL23: 15973.586 | AM23: 7159.482 | AN23: 1.231109178 | AO23: 46.99 | AP23: 55.5 | AQ23: -0.1533333333 | AR23: 1040.4217 | AS23: 1206.2853 | AT23: -0.1374994788 | AU23: 255
O24: 碳酸钠 | P24: 湖南轻盐宏创商贸公司 | Q24: 湖南 | R24: 1664
O25: 氧化铝 | P25: 中浦供应链管理有限公司 | Q25: 重庆 | R25: 504
A26: 6 | B26: 怀化嘉业电子科技有限公司 | C26: 91431200MA7CD9D41M | D26: 正常经营 | H26: 2021年 | I26: 2023年 | K26: 郑紫庭 | L26: 杨小英13307450077 | M26: 龚丽华19359752695 | N26: LCD液晶显示屏，手机触摸屏 | O26: 液晶显示屏 | P26: 深圳三普辉腾电子有限公司 | Q26: 深圳 | R26: 500 | AD26: 25000 | AE26: 25000 | AF26: / | AG26: / | AH26: 3500 | AI26: / | AJ26: 30000 | AK26: / | AL26: 0 | AM26: 3500 | AN26: =AL26/AM26-1 -> -1 | AO26: 0.16 | AP26: 0 | AQ26: 1 | AR26: 5.9162 | AS26: 0 | AT26: 1 | AU26: 60
O27: 集成电路板 | P27: 深圳三普辉腾电子有限公司 | Q27: 深圳 | R27: 200
O28: 集成电路 | P28: 深圳三普辉腾电子有限公司 | Q28: 深圳 | R28: 30
A29: 7 | B29: 湖南一触智能科技有限公司 | C29: 91431200MABW81H00N | D29: 正常经营 | H29: 2022年 | I29: 2023年 | K29: 郑紫庭 | L29: 周 英18674593721 | M29: 向宋军18376633778 | N29: 台式电脑、笔记本电脑、平板电脑、车载导航等 | O29: 玻璃 | P29: 新浦 | Q29: 河南 | R29: 1200 | AD29: 18540 | AE29: 18540 | AF29: / | AG29: / | AH29: 4000 | AI29: 15.762 | AJ29: 5000 | AK29: 0.0031524 | AL29: 15.762 | AM29: 0 | AN29: 1 | AO29: 0.07 | AP29: 0.13 | AQ29: -0.4615384615 | AR29: 1.93 | AS29: 0 | AT29: 1 | AU29: 0
O30: 玻璃 | P30: 兴怀 | Q30: 湖南 | R30: 1000
O31: IC | P31: 承亿 | Q31: 深圳 | R31: 1000
A32: 8 | B32: 湖南久发光电科技有限公司 | C32: 91431200MA7NE28Q6C | D32: 正常经营 | H32: 2022年 | I32: 2023年 | J32: 财政局 | K32: 滕建华 | L32: 易宗岑18007451001 黄智奇17398718577 | M32: 卢久发18681527306 | N32: 光电子器件制造 | O32: 玻璃 | P32: 河南旭阳光电科技有限公司 | Q32: 河南 | R32: 720 | AD32: 11940 | AE32: 11940 | AF32: / | AG32: / | AH32: 2600 | AI32: / | AJ32: 3000 | AK32: / | AL32: 0 | AM32: 0 | AN32: 0 | AO32: 0.37 | AP32: 0.1 | AQ32: 2.7 | AR32: 5.7289 | AS32: 0 | AT32: 1 | AU32: 14
O33: 其他辅料 | P33: 各地 | Q33: 广东 | R33: 720
A34: 9 | B34: 湖南合利来智慧显示科技有限公司 | C34: 91431200MA4PUTMN8C | D34: 正常经营 | H34: 2018年 | I34: 2019年 | J34: 综合行政执法大队 | K34: 吕轶雄 | L34: 夏红平13574590321 杨慧媛17375927722 | M34: 舒 灿18923707152 | N34: 显示器件生产 | O34: PCB板 | P34: 深圳市美奥迪科技有限公司 | Q34: 深圳市 | R34: 24 | AD34: 5656.2 | AE34: 5656.2 | AF34: / | AG34: / | AH34: 1492 | AI34: 67.559 | AJ34: 1560 | AK34: 0.04330705128 | AL34: 67.559 | AM34: 0 | AN34: 1 | AO34: / | AP34: / | AQ34: / | AR34: 1.4455 | AS34: 0.1244 | AT34: =AR34/AS34-1 -> 10.61977492 | AU34: 12
O35: 洁净平板灯 | P35: 中山市华擎照明有限公司 | Q35: 中山市 | R35: 36
O36: 红灯 | P36: 深圳市开源电子有限公司 | Q36: 深圳市 | R36: 48
O37: 电源 | P37: 深圳市兰科光电科技有限公司 | Q37: 深圳市 | R37: 16
A38: 10 | B38: 湖南兆湘光电高端装备研究院有限公司 | C38: 91431200MA7DRM5007 | D38: 停产 | H38: 2021年 | I38: 2023年 | J38: 无 | K38: 无 | L38: 无 | M38: 无 | N38: / | O38: / | P38: / | Q38: / | R38: / | AD38: / | AE38: / | AF38: / | AG38: / | AH38: / | AI38: / | AJ38: / | AK38: / | AL38: / | AM38: / | AN38: / | AO38: / | AP38: / | AQ38: / | AR38: / | AS38: / | AT38: / | AU38: 9
A39: 11 | B39: 湖南骏泰新材料科技有限责任公司 | C39: 91431200790308615P | D39: 正常经营 | E39: 规上 | F39: 生物基新材料产业链 | G39: 吕轶雄 | H39: 2006年 | I39: 2020年 | J39: 平安创建和就业服务专项工作 | K39: 向 华 吕轶雄 | L39: 罗明辉15367572020 | M39: 陈 福18073087999 | N39: 溶解浆、文化浆 | O39: 桉、松木片 | P39: 柳州市旭腾木业有限公司 | Q39: 广西柳州 | R39: 5196.4094 | AD39: 1351752 | AE39: / | AF39: 1351752 | AG39: 86739.16 | AH39: 258159 | AI39: 65024.723 | AJ39: 338560 | AK39: 0.192062627 | AL39: 65024.723 | AM39: 54729.65 | AN39: =AL39/AM39-1 -> 0.1881077807 | AO39: -1456.37 | AP39: -1208.9 | AQ39: 0.2047067582 | AR39: 6906.57 | AS39: 6839.91 | AT39: =AR39/AS39-1 -> 0.009745742269 | AU39: 504
O40: 桉、松木片 | P40: 南宁科林经贸有限公司 | Q40: 广西柳州 | R40: 5093.0694
O41: 桉、松木片 | P41: 岳阳福创物贸有限公司 | Q41: 云南楚雄 | R41: 3897.876
A42: 12 | B42: 湖南骏泰生物质发电有限责任公司 | C42: 914312005676800945 | D42: 正常经营 | H42: 2011年 | I42: 2020年 | K42: 向 华 吕轶雄 | L42: 罗明辉15367572020 | M42: 陈 福18073087999 | N42: 生物质发电 | O42: 木渣 | P42: 岳阳市旺利木材经营有限公司 | Q42: 贵州、湖南 | R42: 1420.3395 | AD42: 16859.83 | AE42: / | AF42: / | AG42: 16859.83 | AH42: 70541 | AI42: 18441.788 | AJ42: 338560 | AK42: 0.05447125473 | AL42: 18441.788 | AM42: 18030.112 | AN42: =AL42/AM42-1 -> 0.02283269233 | AO42: 10.37 | AP42: -48.74 | AQ42: -1.212761592 | AR42: / | AS42: / | AT42: / | AU42: 60
O43: 木渣 | P43: 中方县中和木材有限公司 | Q43: 湖南贵州 | R43: 1053.2573
O44: 木渣 | P44: 怀化市资盛木业有限公司 | Q44: 湖南 | R44: 732.6599
A45: 13 | B45: 怀化市资盛木业有限公司 | C45: 91431200MA4LUTTU60 | D45: 正常经营 | H45: 2023年 | I45: 2023年 | K45: 吕轶雄 | L45: 姚沅胜13874402415 | M45: 游 犇18684799888 | N45: 木块 | O45: 木材 | P45: / | Q45: 广西、贵州 | R45: / | AD45: 7705 | AE45: 7705 | AF45: / | AG45: / | AH45: 3269 | AI45: 1428.2 | AJ45: 5000 | AK45: 0.28564 | AL45: 1428.2 | AM45: 1300.338 | AN45: 0.09832981886 | AO45: 23.76 | AP45: 31.76 | AQ45: -0.2518891688 | AR45: / | AS45: / | AT45: / | AU45: 10
A46: 14 | B46: 湖南乔伟生态科技新材料股份有限公司 | C46: 91431200MA4L73DG3G | D46: 正常经营 | H46: 2016年 | I46: 2017年 | J46: 综合行政执法大队 | K46: 吕轶雄 | L46: 唐憬峰18374538068 黄碧成18674517995 | M46: 龚乔兵13787535199 | N46: 生态板、全屋定制产品 | O46: 饰面纸 | P46: 佳饰家新材料有限公司 | Q46: 贵州 | R46: 1000 | AD46: 17117 | AE46: 17117 | AF46: / | AG46: / | AH46: 4800 | AI46: 882.515 | AJ46: 5200 | AK46: 0.1697144231 | AL46: 882.515 | AM46: 818.014 | AN46: 0.07885072872 | AO46: 2.61 | AP46: 21.6 | AQ46: -0.8791666667 | AR46: 25.7857 | AS46: 31.6117 | AT46: =AR46/AS46-1 -> -0.1842988514 | AU46: 112
A47: 15 | B47: 湖南寰宇新材料科技股份有限公司 | C47: 9143120033842568XD | D47: 正常经营 | H47: 2015年 | I47: 2016年 | K47: 吕轶雄 | L47: 叶 晴15096226500 李 辉17711756602 | M47: 周炸新15576573333 | N47: 人造板、产业用纺织成品、服装 | O47: 布料 | P47: 浩博 | Q47: 江苏 | R47: 500 | AD47: 55520 | AE47: / | AF47: 55520 | AG47: 24525 | AH47: 2500 | AI47: 1308 | AJ47: 4000 | AK47: 0.327 | AL47: 1308 | AM47: 859.642 | AN47: 0.5215636276 | AO47: 30.83 | AP47: 54.18 | AQ47: -0.4309708379 | AR47: 0.0036 | AS47: 0.0048 | AT47: -0.25 | AU47: 60
O48: 布料 | P48: 花剪子 | Q48: 浙江 | R48: 1000
A49: 16 | B49: 中方县中和木材有限公司 | C49: 91431221MA4PAGE47G | D49: 正常经营 | H49: 2023年 | I49: 2023年 | J49: 办公室 | K49: 吕轶雄 | L49: 邓邵洁13607418989 杨海余18774581127 | M49: 卢启平15874599233 | N49: 骏泰木材原料 | O49: 单板皮 | P49: 个人收购 | Q49: 中方县 | R49: 303 | AD49: 7333 | AE49: 7333 | AF49: / | AG49: / | AH49: 2200 | AI49: 1577.04 | AJ49: 2300 | AK49: 0.6856695652 | AL49: 1577.04 | AM49: 454.569 | AN49: =AL49/AM49-1 -> 2.46930829 | AO49: 23.55 | AP49: 25.89 | AQ49: -0.09038238702 | AR49: 0 | AS49: 0 | AU49: 17
O50: 枝丫 | P50: 个人收购 | Q50: 中方县 | R50: 989
O51: 松边皮 | P51: 个人收购 | Q51: 中方县 | R51: 856
O52: 杉边皮 | P52: 个人收购 | Q52: 中方县 | R52: 162
A53: 17 | B53: 湖南金益环保股份有限公司 | C53: 91431200661668665P | D53: 正常经营 | E53: 规上 | F53: 高端装备制造产业链 | G53: 张 捍 | H53: 2013年 | I53: 2014年 | J53: 科学技术局 | K53: 张 捍 | L53: 刘 俊19974582333 | M53: 彭 丽18974576570 | N53: 污水处理技术输出、污水处理运营服务、环保专用设备制造 | O53: 钢材 | P53: 市场零星采购 | Q53: / | R53: 50 | AD53: 34557.21 | AE53: / | AF53: 34557.21 | AG53: 8932.49 | AH53: 2096.64 | AI53: 442.9 | AJ53: 2100 | AK53: 0.2109047619 | AL53: 442.9 | AM53: 60.776 | AN53: 6.287416085 | AO53: 10.49 | AP53: 166.49 | AQ53: -0.9369932128 | AR53: 4.7532 | AS53: 2.9313 | AT53: =AR53/AS53-1 -> 0.6215331082 | AU53: 45
A54: 18 | B54: 湖南诚路管业科技有限公司 | C54: 91431200MA4PC90U2Q | D54: 正常经营 | H54: 2018年 | I54: 2018年 | J54: 安置专项 | K54: 张 捍 | L54: 杨 波13874472888 | M54: 尹天宝18075987785 | N54: PE给水管、复合型钢丝骨架管 | O54: 聚乙烯 | P54: 中国石油天然气股份有限公司西南化工销售分公司、怀化市盛兴贸易有限公司、湖南意风环保科技有限公司 | Q54: 成都、广州 | R54: 5000 | AD54: 19415.85 | AE54: / | AF54: 55486.9 | AG54: 19415.85 | AH54: 27120 | AI54: 6925 | AJ54: 30000 | AK54: 0.2308333333 | AL54: 6925 | AM54: 5331.3 | AN54: 0.2989327181 | AO54: 116.9 | AP54: 161.89 | AQ54: -0.2779047501 | AR54: 303.3984 | AS54: 278.1035 | AT54: 0.09095498618 | AU54: 138
A55: 19 | B55: 怀化宝汇报废汽车回收拆解有限公司 | C55: 91431200MA4P7TL753 | D55: 正常经营 | H55: 2018年 | I55: 2023年 | J55: 市场监管局直属一局 | K55: 张 捍 | L55: 唐 勇15115160909 | M55: 骆自强18974545551 | N55: 废金属、废塑料等 | O55: 汽车回收 | P55: 零散 | Q55: / | R55: 2600 | AD55: 15000 | AE55: / | AF55: 15000 | AG55: / | AH55: 3600 | AI55: 515 | AJ55: 2800 | AK55: 0.1839285714 | AL55: 515 | AM55: 593.4 | AN55: -0.1321199865 | AO55: 22.15 | AP55: 24.01 | AQ55: -0.07746772178 | AR55: 6.5235 | AS55: 9.6975 | AT55: -0.3273008507 | AU55: 25
A56: 20 | B56: 湖南卫兵智能科技有限公司 | C56: 91431200MA4P943X6W | D56: 正常经营 | H56: 2017年 | I56: 2019年 | J56: 财评专项工作 | K56: 张 捍 | L56: 聂友芳13787451769 | M56: 范卫兵15274564857 | N56: 车牌识别一体机、道闸、岗亭、人行通道闸等 | O56: 不锈钢 | P56: 佛山市力盛不锈钢 | Q56: 佛山 | R56: 200 | AD56: 3000 | AE56: 3000 | AF56: / | AG56: / | AH56: 3604 | AI56: 1249.8 | AJ56: 3500 | AK56: 0.3570857143 | AL56: 1249.8 | AM56: 119.629 | AN56: 9.447299568 | AO56: 0.37 | AP56: 4.47 | AQ56: -0.9172259508 | AR56: 1.27 | AS56: 1.544 | AT56: -0.1774611399 | AU56: 27
O57: 镀锌板、铁板、铝材 | P57: 湖南天通钢材 | Q57: 长沙、山东等地 | R57: 500
O58: 印制电路板、摄像头 | P58: 成都臻识科技、杭州海康等 | Q58: 广州深圳杭州成都等地 | R58: 1200
A59: 21 | B59: 湖南勇利钢结构有限公司 | C59: 91431200554901468H | D59: 正常经营 | H59: 2010年 | I59: 2015年 | J59: 平安创建和就业服务专项工作 | K59: 张 捍 | L59: 夏建良15074585083 | M59: 谭 勇18274501877 | N59: 钢构件 | O59: 钢材 | P59: 恩瑞、荣鑫 | Q59: 长沙、娄底 | R59: 680 | AD59: 33000 | AE59: / | AF59: 33000 | AG59: 7598 | AH59: 1360 | AI59: 540.613 | AJ59: 800 | AK59: 0.67576625 | AL59: 540.613 | AM59: 539.293 | AN59: =AL59/AM59-1 -> 0.002447649052 | AO59: 18.43 | AP59: 17.58 | AQ59: 0.04835039818 | AR59: 2.438 | AS59: 7.204 | AT59: =AR59/AS59-1 -> -0.6615769017 | AU59: 25
O60: 焊材 | P60: 湘楚、磊航 | Q60: 怀化 | R60: 40
O61: 油漆 | P61: 南舟 | Q61: 湘潭 | R61: 30
O62: 气体 | P62: 龙形 | Q62: 怀化 | R62: 20
A63: 22 | B63: 湖南创佳数控机床有限公司 | C63: 91431200MA4QNTM537 | D63: 正常经营 | H63: 2019年 | I63: 2020年 | J63: 综合行政执法大队 | K63: 张 捍 | L63: 彭 鹏13974520269 周小东13607410344 | M63: 易 刚15768398806 | N63: 数控机床 | O63: 钢板 | P63: 怀化河西市场 | Q63: 山东 | R63: 150 | AD63: 12300 | AE63: 12300 | AF63: / | AG63: / | AH63: 6700 | AI63: 1265.7 | AJ63: 8000 | AK63: 0.1582125 | AL63: 1265.7 | AM63: 831.6 | AN63: =AL63/AM63-1 -> 0.522005772 | AO63: 22.76 | AP63: 43.37 | AQ63: -0.4752132811 | AR63: 10.88 | AS63: 10.2952 | AT63: =AR63/AS63-1 -> 0.05680317041 | AU63: 70
O64: 铸件 | P64: 森禾 | Q64: 湖南宁乡 | R64: 2700
O65: 智能系统 | P65: 三菱 | Q65: 日本 | R65: 1600
A66: 23 | B66: 怀化易泰环保工程有限公司 | C66: 91431200MA4PACY6X7 | D66: 正常经营 | H66: 2018年 | I66: 2023年 | J66: 市生态环境局高新区分局 | K66: 张 捍 | L66: 张 吾15875275467 | M66: 刘 勇17711751638 | N66: 沥青混凝土 | O66: 沥青 | P66: 湖南省公路物资有限公司 | Q66: 长沙 | R66: 1400 | AD66: 17000 | AE66: / | AF66: 17000 | AG66: / | AH66: 2900 | AI66: 1134.1 | AJ66: 3500 | AK66: 0.3240285714 | AL66: 1134.1 | AM66: 1157.214 | AN66: -0.01997383371 | AO66: 28.34 | AP66: 2.62 | AQ66: 9.816793893 | AR66: 7.072 | AS66: 7.4341 | AT66: -0.04870798079 | AU66: 13
O67: 碎石 | P67: 个体户 | Q67: 怀化 | R67: 500
A68: 24 | B68: 金升阳（怀化）科技有限公司 | C68: 91431200580946678E | D68: 正常经营 | E68: 规上 | F68: 电子元器件产业链 | G68: 无 | H68: 2011年 | I68: 2017年 | J68: 高新技术和产业发展局 | K68: 高源江 | L68: 潘佳春18774562162 | M68: 杨 韬18273840215 | N68: 电源模块 | O68: 工业酒精 | P68: 怀化同心圆 | Q68: 怀化 | R68: 20 | AD68: 102025.74 | AE68: / | AF68: 88803.9 | AG68: 91747.26 | AH68: 33100 | AI68: 7941.3 | AJ68: 36410 | AK68: 0.2181076627 | AL68: 7941.3 | AM68: 8045.467 | AN68: -0.01294729069 | AO68: 1014.57 | AP68: 1784.35 | AQ68: -0.4314063945 | AR68: 372.6302 | AS68: 337.8415 | AT68: 0.1029734358 | AU68: 2015
O69: 二氯甲烷 | P69: 怀化同心圆 | Q69: 怀化 | R69: 30
A70: 25 | B70: 湖南德宏电力科技有限公司 | C70: 914312003207178367 | D70: 正常经营 | H70: 2019年 | I70: 2021年 | J70: 高新技术和产业发展局 | K70: 胡迈午 | L70: 贺茹熙15974023666 | M70: 王定军13378929555 | N70: 高低压配电柜，箱式变电站，动力柜，配电箱，户外开闭所 | O70: 板材 | P70: 湖南地球村供应链有限公司 | Q70: 长沙 | R70: 300 | AD70: 4500 | AE70: 4500 | AF70: / | AG70: / | AH70: 838.408 | AI70: 457.7 | AJ70: 2000 | AK70: 0.22885 | AL70: 457.7 | AM70: 445.9 | AN70: =AL70/AM70-1 -> 0.02646333259 | AO70: 1.87 | AP70: 21.52 | AQ70: -0.9131040892 | AR70: 1.1938 | AS70: 1.2399 | AT70: =AR70/AS70-1 -> -0.03718041778 | AU70: 4
O71: 铜排 | P71: 江西华鑫金属制造有限公司 | Q71: 江西 | R71: 300
O72: 高低压断路器 | P72: 德力西电气 | Q72: 浙江 | R72: 500
A73: 26 | B73: 湖南湘鹤集团电缆科技股份有限公司 | C73: 91431200188936459G | D73: 正常经营 | H73: 2010年 | I73: 2011年 | J73: 高新技术和产业发展局 | K73: 胡迈午 | L73: 宗 钲18674501705 | M73: 王茂卿13974578888 | N73: 电线电缆 | O73: 铜杆 | P73: 江西建鑫铜业 | Q73: 江西 | R73: 9000 | AD73: 89096 | AE73: / | AF73: 89096 | AG73: 52717 | AH73: 17000 | AI73: 4259.1 | AJ73: 20000 | AK73: 0.212955 | AL73: 4259.1 | AM73: 2934.3 | AN73: =AL73/AM73-1 -> 0.451487578 | AO73: 76.66 | AP73: 125.69 | AQ73: -0.3900867213 | AR73: 31.025 | AS73: 26.16 | AT73: =AR73/AS73-1 -> 0.185970948 | AU73: 120
O74: 铝杆 | P74: 广西信发铝业 | Q74: 广西 | R74: 2000
O75: 树脂粉 | P75: 中石化浙江分公司 | Q75: 浙江 | R75: 3000
A76: 27 | B76: 怀化市富科科技有限公司 | C76: 91431200MABQUUF44G | D76: 正常经营 | H76: 2022年 | I76: 2023年 | J76: 高新技术和产业发展局 | K76: 胡迈午 | L76: 黄 强18670727093 | M76: 李 敢13927338928 | N76: 冲压件 | O76: 钢材 | P76: 晟科 | Q76: 东莞 | R76: 284 | AD76: 1840 | AE76: 1840 | AF76: / | AG76: / | AH76: 5036 | AI76: 1247.17 | AJ76: 5000 | AK76: 0.249434 | AL76: 1247.17 | AM76: 794.447 | AN76: 0.5698592858 | AO76: 21.49 | AP76: 14.81 | AQ76: 0.4510465901 | AR76: 5.302 | AS76: 3.364 | AT76: 0.5760998811 | AU76: 60
O77: 铝材 | P77: 盛余 | Q77: 东莞 | R77: 967
A78: 28 | B78: 怀化市银科智能科技有限公司 | C78: 91431200MA7D04LU1Y | D78: 正常经营 | H78: 2021年 | I78: 2022年 | J78: 高新技术和产业发展局 | K78: 杨海平 | L78: 赵亮宇18627455175 曾玉蓉15115227777 | M78: 喻泽华17773145925 | N78: 智能门锁、智能硬件、智慧公交、充电桩、5G手机、手机配件数码产品和AIOT系统云平台 | O78: 塑胶料 | Q78: 山东、广东 | AD78: 33176 | AE78: 33176 | AF78: / | AG78: / | AH78: 22255.67 | AI78: 2477.934 | AJ78: 40000 | AK78: 0.06194835 | AL78: 2477.934 | AM78: 4254.328 | AN78: -0.4175498457 | AO78: 31.5 | AP78: 1.46 | AQ78: 20.57534247 | AR78: 7.8469 | AS78: 4.2628 | AT78: 0.8407853993 | AU78: 120
O79: 五金料 | Q79: 山东、浙江
O80: 电子元器件 | Q80: 广东
O81: 铜丝 | Q81: 江西
A82: 29 | B82: 湖南百曜光电有限公司 | C82: 91431281MA4RXL0H5A | D82: 正常经营 | H82: 2020年 | I82: 2021年 | J82: 平安创建和就业服务专项工作 | K82: 胡迈午 | L82: 杨成莉13607450158 | M82: 翟少华13922816821 | N82: 手机镜头 | O82: 黑料 | P82: / | Q82: / | R82: / | AD82: 2850 | AE82: 2850 | AF82: / | AG82: / | AH82: 3000 | AI82: 531.5 | AJ82: 4000 | AK82: 0.132875 | AL82: 531.5 | AM82: 625.8 | AN82: =AL82/AM82-1 -> -0.1506871205 | AO82: 19.46 | AP82: 18.48 | AQ82: 0.05303030303 | AR82: 7.6 | AS82: 5.678 | AT82: =AR82/AS82-1 -> 0.3384994716 | AU82: 47
A83: 30 | B83: 大研智能机器人（怀化）有限公司 | C83: 91431200MA7HNK0N3F | D83: 正常经营 | H83: 2022年 | I83: 2022年 | J83: 内审法务专项工作 | K83: 向 华 | L83: 潘 凯13627459900 | M83: 张 贵13736093763 肖大放18024448494 | N83: 工业机器人 | O83: 谐波减速机 | P83: 中时达 | Q83: 浙江 | R83: 500 | AD83: 31989 | AE83: / | AF83: 6600 | AG83: 13205.69 | AH83: 1000 | AI83: 129.197 | AJ83: 5000 | AK83: 0.0258394 | AL83: 129.197 | AM83: 155.305 | AN83: -0.1681079167 | AO83: 15.85 | AP83: 21.11 | AQ83: -0.249171009 | AR83: 1.4448 | AS83: 1.4904 | AT83: -0.0305958132 | AU83: 11
O84: 电机 | P84: 凯邦 | Q84: 珠海 | R84: 350
O85: 五金压铸件 | P85: 灏翊 | Q85: 佛山 | R85: 200
O86: 机械配件 | P86: 惠电 | Q86: 湖南 | R86: 100
A87: 31 | B87: 湖南昱文科技有限公司 | C87: 91431200MA7J0KPK4A | D87: 正常经营 | E87: 规上 | F87: / | G87: / | H87: 2022年 | I87: 2022年 | J87: 招商合作局 | K87: 郑紫庭 | L87: 王 静18874500660 | M87: 张家松18874045888 | N87: 石墨及碳素制品制造 | O87: 铋锭 | P87: 靖远高能环境新材料有限公司 | Q87: 甘肃省白银市 | R87: 600 | AD87: 15000 | AE87: 11940 | AF87: / | AG87: / | AH87: 6652 | AI87: 1032.782 | AJ87: 7000 | AK87: 0.1475402857 | AL87: 1032.782 | AM87: 1521.644 | AN87: -0.3212722555 | AO87: 138.7 | AP87: 207.53 | AQ87: -0.3316628921 | AR87: 15.5915 | AS87: 29.0991 | AT87: -0.4641930506 | AU87: 30
O88: 铋锭 | P88: 永兴和盛环保科技有限公司 | Q88: 湖南省郴州市 | R88: 490
O89: CWA-002 | P89: 青岛福金石墨有限公司 | Q89: 山东省青岛市 | R89: 320
O90: CWA-008 | P90: 湖南锡矿山闪星锑业进出口有限公司 | Q90: 湖南省冷水江市 | R90: 970
A91: 32 | B91: 湖南昱烯瓴新材料有限公司 | C91: 91431200MA4T4AAH28 | D91: 正常经营 | E91: 规上 | F91: / | G91: / | H91: 2021年 | I91: 2022年 | K91: 郑紫庭 | L91: 王 静18874500660 | M91: 张家松18874045888 | N91: 聚合物正负极材料 | O91: 三氯化锑 | P91: 湖南昱方科技有限公司 | Q91: 湖南省长沙市 | R91: 160 | AD91: 3316.36 | AE91: 3316.36 | AF91: / | AG91: / | AH91: 0 | AI91: 0 | AJ91: 100 | AK91: 0 | AL91: 0 | AM91: 0 | AN91: 0 | AO91: -42.86 | AP91: 382.2 | AQ91: -1.112140241 | AR91: 0.587 | AS91: 0.864 | AT91: =AR91/AS91-1 -> -0.3206018519 | AU91: 8
O92: 二氧化钛 | P92: 仙桃市中星电子材料有限公司 | Q92: 湖北省仙桃市 | R92: 9
A93: 33 | B93: 湖南中睿输变电科技有限公司 | C93: 91431200570287031L | D93: 正常经营 | E93: 规上 | F93: / | G93: / | H93: 2011年 | I93: 2020年 | J93: 高新技术和产业发展局 | K93: 胡迈午 | L93: 李辉元13607411557 | M93: 王茂卿13974578888 | N93: 高低压成套设备 | O93: 壳体 | P93: 浙江六方、浙江伟臻、浙江广柜 | Q93: 温州乐清 | R93: 200 | AD93: 2700 | AE93: 2700 | AF93: / | AG93: / | AH93: 514.1 | AI93: 300.7 | AJ93: 2000 | AK93: 0.15035 | AL93: 300.7 | AM93: 613.9 | AN93: =AL93/AM93-1 -> -0.5101808112 | AO93: 8.17 | AP93: 12.06 | AQ93: -0.3225538972 | AR93: 湘鹤共用户 | AU93: 14
O94: 元器件 | P94: 正泰、德力西等 | Q94: 温州乐清 | R94: 500
O95: 线材 | P95: 湘鹤 | Q95: 湖南怀化 | R95: 60
O96: 变压器 | P96: 东亮、衡变智控等 | Q96: 温州、长沙 | R96: 110
O97: 直流屏 | P97: 万正、楚通、泰美 | Q97: 温州、安徽、长沙 | R97: 40
A98: 34 | B98: 怀化恒枫饮料有限公司 | C98: 91431200678024065P | D98: 正常经营 | E98: 规上 | F98: / | G98: / | H98: 2008年 | I98: 2009年 | J98: 组织工作局 | K98: 高源江 | L98: 向 浩13974539775 刘潇潇18774796971 | M98: 沈红卫13902241522 | N98: 纯净水、茶饮料、含乳饮料、苏打水、果汁饮料 | O98: 白糖 | P98: 南宁糖业/南宁东亚 | Q98: 广西南宁 | R98: 500 | AD98: 121242 | AE98: / | AF98: 31064 | AG98: 36751.77 | AH98: 27060.35 | AI98: 7770.72 | AJ98: 30780.04 | AK98: 0.2524597109 | AL98: 7770.716 | AM98: 8095.247 | AN98: =AL98/AM98-1 -> -0.04008907943 | AO98: 620.66 | AP98: 1013.56 | AQ98: -0.3876435534 | AR98: 432.0179 | AS98: 435.5407 | AT98: -0.008088337095 | AU98: 168 | AV98: /
O99: 奶粉 | P99: / | Q99: 进口（美国、德国等） | R99: 1500
O100: 茶粉、茶叶 | P100: 浙江茗皇/浙江易晓/浙江华发 | Q100: 杭州、湖北、江西 | R100: 100
O101: 切片、粒子 | P101: 万凯 | Q101: 重庆 | R101: 1900
A102: 35 | B102: 怀化湘娃桶装水有限公司 | C102: 91431200MA4QMHDE14 | D102: 正常经营 | E102: 规上 | F102: / | G102: / | H102: 2015年 | I102: 2020年 | K102: 向吉随 | L102: 李 英13907451311 赖艺舟18674527991 | M102: 潘海全18273864831 | N102: 娃哈哈大桶水 | O102: 娃哈哈空桶 | P102: 广西光大美科塑胶制品有限公司 | Q102: 广西 | R102: 52 | AD102: 14671.8 | AE102: / | AF102: 5931.49 | AG102: 14445.4 | AH102: 1980 | AI102: 314.442 | AJ102: 2000 | AK102: 0.157221 | AL102: 314.442 | AM102: 460.177 | AN102: =AL102/AM102-1 -> -0.3166933593 | AO102: 4.05 | AP102: 14.66 | AQ102: -0.7237380628 | AR102: 16.0404 | AS102: 12.9652 | AT102: 0.2371887823 | AU102: 57
O103: 娃哈哈瓶盖 | P103: 佛山市顺德区威狮卡普塑料制品有限公司 | Q103: 广东佛山 | R103: 36
A104: 36 | B104: 湖南金珠米业有限公司 | C104: 91431200L0256382XB | D104: 正常经营 | E104: 规上 | F104: / | G104: / | H104: 2004年 | I104: 2008年 | K104: 杨海平 | L104: 周华明15974048989 杨 渊13607452030 | M104: 周启芳13467418789 | N104: 大米 | O104: 稻谷 | P104: 农夫、金玉米业 | Q104: 湖南、湖北 | R104: 7200 | AD104: 34000 | AE104: / | AF104: 12804.2 | AG104: 14604.2 | AH104: 2460 | AI104: 467.5 | AJ104: 2800 | AK104: 0.1669642857 | AL104: 467.5 | AM104: 345.7 | AN104: 0.3523286086 | AO104: 4.9 | AP104: 17.02 | AQ104: -0.7121034078 | AR104: 7.4264 | AS104: 7.0641 | AT104: 0.05128749593 | AU104: 33
A105: 37 | B105: 湖南金珠油脂有限公司 | C105: 914312000558016146 | D105: 正常经营 | E105: 规上 | F105: / | G105: / | H105: 2012年 | I105: 2014年 | K105: 杨海平 | N105: 食用油 | O105: 食用油 | P105: 金海粮油 | Q105: 广东 | R105: 500 | AH105: 600 | AI105: 885.9 | AJ105: 800 | AK105: 1.107375 | AL105: 885.9 | AM105: 156.6 | AN105: 4.657088123 | AO105: 2.43 | AP105: 6.67 | AQ105: -0.6356821589 | AR105: 0 | AS105: 0
A106: 38 | B106: 湖南衡波特种玻璃科技有限公司 | C106: 91431200MA4QCG9981 | D106: 正常经营 | E106: 规上 | F106: / | G106: / | H106: 2019年 | I106: 2021年 | K106: 杨海平 | L106: 田 婷18390323185 彭 菁18390306715 | M106: 舒双衡13607452305 | N106: 钢化玻璃、铝合金门窗安装及销售 | O106: 玻璃原片 | P106: 亿钧 | Q106: 湖北荆州 | R106: 800 | AD106: 6000 | AE106: 6000 | AF106: / | AG106: / | AH106: 2100 | AI106: 408.8 | AJ106: 2000 | AK106: 0.2044 | AL106: 408.8 | AM106: 407.7 | AN106: 0.002698062301 | AO106: 0.81 | AP106: 8.05 | AQ106: -0.899378882 | AR106: 34.701 | AS106: 36.408 | AT106: -0.04688529993 | AU106: 42
O107: 玻璃原片 | P107: 旗滨 | Q107: 湖南醴陵 | R107: 500
O108: 玻璃原片 | P108: 明钧 | Q108: 贵州凯里 | R108: 800
A109: 39 | B109: 湖南华峰新宇电子有限公司 | C109: 9143120067800382XL | D109: 正常经营 | E109: 规下 | F109: / | G109: / | H109: 2018年 | I109: / | K109: 胡迈午 | L109: 杨 渊13607452030 杨敬东13874448449 | M109: 罗宝盖13973088308 熊 华15974000221 | N109: 电子连接器 | O109: 铜棒 铜线 | P109: 宁波博威合 金材料股份有限公司 | Q109: 浙江省宁波 | R109: 10.5 | AD109: 27068.8 | AE109: / | AF109: 6393.68 | AG109: 19548.82 | AH109: 3204 | AI109: 482 | AJ109: 4000 | AK109: 0.1205 | AL109: / | AM109: / | AN109: / | AO109: 77.86 | AP109: 33.13 | AQ109: 1.350135829 | AR109: 11.1743 | AS109: 12.0571 | AT109: -0.07321826973 | AU109: 152
O110: 聚苯硫醚 | P110: 广州市鹏云塑料有限 公司 | Q110: 广东省广州 | R110: 2.1
O111: 硅橡胶 | P111: 重庆长橡实业有限公司 | Q111: 重庆市 | R111: 1.9
A112: 40 | B112: 怀化金弘再生资源有限公司 | C112: 91431200MA7B8LPH9T | D112: 正常经营 | E112: 规上 | F112: / | G112: / | H112: 2021年 | I112: 2022年 | J112: 财政局 | K112: 张永灿 | L112: 周友红18570452978 汪一龄17674539940 | M112: 黄 灏13510282708 | N112: 废钢 | O112: 废钢 | P112: 怀化春方物资回收有限公司 | Q112: 湖南 | R112: 39009 | AD112: 37462 | AE112: / | AF112: 37462 | AG112: / | AH112: 67202 | AI112: 8360.429 | AJ112: 50000 | AK112: 0.16720858 | AL112: 8360.429 | AM112: 3149.7 | AN112: 1 | AO112: 716.82 | AP112: 1.16 | AQ112: 616.9482759 | AR112: 8.1791 | AS112: 7.2007 | AT112: 0.1358756788 | AU112: 17
O113: 废钢 | P113: 怀化银麓物资回收有限公司 | Q113: 湖南 | R113: 8484
A114: 41 | B114: 湖南中辰电气科技有限公司 | C114: 91431200MA4PU97935 | D114: 正常经营 | E114: 规上 | F114: / | G114: / | H114: 2020年 | I114: 2024年 | J114: 平安创建和就业服务专项工作 | K114: 胡迈午 | L114: 谢年华15907455588 | M114: 李永富18274591885 | N114: 高低压成套设备、箱式变电站、高压环网柜等 | O114: 变压器 | P114: 江苏旭翔变压器有限公司 | Q114: 徐州 | R114: 300 | AD114: 4320 | AE114: 4320 | AF114: / | AG114: / | AH114: 3000 | AI114: 722.288 | AJ114: 3500 | AK114: 0.206368 | AL114: 722.288 | AM114: 621.281 | AN114: =AL114/AM114-1 -> 0.1625786077 | AO114: 25 | AP114: 11.93 | AQ114: 1.095557418 | AR114: 0 | AS114: 0.734 | AT114: -1 | AU114: 24
O115: 柜体 | P115: 北广科技有限公司 | Q115: 乐清 | R115: 100
O116: 铜排 | P116: 乐清市其利铜业有限公司 | Q116: 乐清 | R116: 300
A117: 42 | B117: 湖南红宝科技开发有限公司 | C117: 91431200553027959D | D117: 正常经营 | E117: 规上 | F117: / | G117: / | H117: 2010年 | I117: 2018年 | K117: 吕轶雄 | L117: 聂生金13973078920 | M117: 曾志强18974506776 | N117: 汽油、柴油、乙醇汽油、化合柴油 | O117: 汽油 | P117: 鹤山市博众能源贸易有限公司 | Q117: 广州 | R117: 8000 | AD117: 40600 | AE117: / | AF117: 40600 | AG117: 40600 | AH117: 38885 | AI117: 4932.7 | AJ117: 52000 | AK117: 0.09485961538 | AL117: 4932.7 | AM117: 12507.1 | AN117: -0.6056080146 | AO117: 204.42 | AP117: 567.03 | AQ117: -0.6394899741 | AR117: 3.8036 | AS117: 5.8034 | AT117: -0.3445911018 | AU117: 50
O118: 柴油 | P118: 广东昶宏石油化工有限公司 | Q118: 广州 | R118: 3000
A119: 43 | B119: 怀化市金达塑业有限公司 | C119: 91431221MA4LKFYU5K | D119: 正常经营 | E119: 规上 | F119: / | G119: / | H119: 2017年 | I119: 2020年 | K119: 李 旭 | L119: 田金伟18574515335 | M119: 周启兴13874486338 | N119: 超市购物袋、连卷袋、服装袋、工业包装 | O119: 6095塑料颗粒 | P119: 湖南科伟乐 | Q119: 广东石化 | R119: 400 | AD119: 2000 | AE119: 2000 | AF119: / | AG119: / | AH119: 1800 | AI119: 368.793 | AJ119: 2000 | AK119: 0.1843965 | AL119: 368.793 | AM119: 345.9 | AN119: 0.06618386817 | AO119: 3.02 | AP119: 4.64 | AQ119: -0.349137931 | AR119: 28.469 | AS119: 14.6 | AT119: 0.9499315068 | AU119: 15
O120: 7042塑料颗粒 | P120: 湖南科伟乐 | Q120: 中煤 | R120: 200
O121: 7000F塑料颗粒 | P121: 东莞铭阳 | Q121: 伊朗 | R121: 100
A122: 44 | B122: 怀化市宏林科技有限公司 | C122: 914312003294590367 | D122: 正常经营 | E122: 规下 | F122: / | G122: / | H122: 2014年 | I122: / | K122: 李 旭 | L122: 吴传圭15399825662 | M122: 黄 滨19918599233 | N122: 阻燃剂 | O122: 工业赤磷 | P122: 江磷集团、贵州兴荣和 | Q122: 云南、贵州 | R122: 1200 | AD122: 5000 | AE122: 5000 | AF122: / | AG122: / | AH122: 1600 | AI122: 341 | AJ122: 1800 | AK122: 0.1894444444 | AL122: / | AM122: / | AN122: / | AO122: 15.09 | AP122: 22.82 | AQ122: -0.3387379492 | AR122: 11.5923 | AS122: 12.8498 | AT122: -0.09786144531 | AU122: 5
A123: 45 | B123: 湖南瑞力恒环保科技有限公司 | C123: 91431200MA7DKF1AXT | D123: 正常经营 | E123: 规下 | F123: / | G123: / | H123: 2021年 | I123: / | K123: 杨海平 | L123: 田金伟18574515335 | M123: 周启兴13874486338 | N123: 环保降解购物袋、垃圾袋等 | O123: 6095塑料颗粒 | P123: 湖南科伟乐 | Q123: 广东石化 | R123: 200 | AD123: 1200 | AE123: 1200 | AF123: / | AG123: / | AH123: 400 | AI123: 200 | AJ123: 1000 | AK123: 0.2 | AL123: / | AM123: / | AN123: / | AO123: 0.17 | AP123: 0.01 | AQ123: 16 | AR123: / | AS123: / | AT123: / | AU123: 12
O124: 7042塑料颗粒 | P124: 湖南科伟乐 | Q124: 中煤 | R124: 160
O125: 降解颗粒 | P125: 瑞力恒科技 | Q125: 广东 | R125: 150
A126: 46 | B126: 湖南千源铝业有限公司 | C126: 9143120007495785XM | D126: 正常经营 | E126: 规上 | F126: / | G126: / | H126: 2013年 | I126: 2015年 | J126: 科学技术局 | K126: 张永灿 | L126: 瞿江玲18974560008 | M126: 刘宗意18874528088 | N126: 有色金属加工 | O126: 铝棒 | P126: 清镇市昀鑫贸易有限公司 | Q126: 贵阳 | R126: 2987.62 | AD126: 42814 | AE126: / | AF126: 42814 | AG126: 25635.8 | AH126: 14874.1 | AI126: 2679.23 | AJ126: 18000 | AK126: 0.1488461111 | AL126: 2679.236 | AM126: 3306.871 | AN126: =AL126/AM126-1 -> -0.1897972434 | AO126: 15.95 | AP126: 103.02 | AQ126: -0.845175694 | AR126: 180.0409 | AS126: 262.5889 | AT126: -0.3143621075 | AU126: 123 | AV126: 95984
O127: 铝棒 | P127: 湖南平丰铝业有限公司 | Q127: 怀化市中方县 | R127: 2954.53
O128: 铝棒 | P128: 佛山市兆鑫峰新材料有限公司 | Q128: 佛山市 | R128: 3964.12
O129: 粉末 | P129: 阿克苏．诺贝尔．长诚涂料有限公司 | Q129: 广州或武汉 | R129: 276.48
A130: 47 | B130: 湖南平丰铝业有限公司 | C130: 91431200MA7BCFDU4P | D130: 正常经营 | E130: 规上 | F130: / | G130: / | H130: 2021年 | I130: 2022年 | K130: 张永灿 | L130: 吕若琪18075997908 | M130: 刘宗意18874528088 | N130: 铝棒生产 | O130: 废铝材等 | P130: 怀化市金汇报废汽车回收拆解有限公司 | Q130: 怀化市中方县 | R130: 112.88 | AD130: 千源铝业厂房 | AH130: 2954.53 | AI130: 657.814 | AJ130: 5000 | AK130: 0.1315628 | AL130: 657.814 | AM130: 514.937 | AN130: =AL130/AM130-1 -> 0.2774650103 | AO130: 2.97 | AP130: -0.53 | AQ130: -6.603773585 | AR130: 32.2747 | AS130: 0 | AT130: 1 | AU130: 35 | AV130: 34137
O131: 废铝材等 | P131: 湖南创航再生资源有限公司 | Q131: 衡阳 | R131: 148.32
O132: 废铝材等 | P132: 永州市力胜物资贸易有限公司 | Q132: 永州 | R132: 165.08
O133: 镁锭 | P133: 山西温弗瑞金属材料有限责任公司 | Q133: 山西 | R133: 33.19
A134: 48 | B134: 湖南宝惠丰新材料科技有限公司 | C134: 91431200MA4L2J4L37 | D134: 正常经营 | E134: 规上 | F134: / | G134: / | H134: 2016年 | I134: 2019年 | K134: 张永灿 | L134: 谭伊然13874546133 | M134: 周文星18773939978 | N134: 金属加工销售 | O134: 镁锭及其他中间合金 | P134: 闻喜县振特贸易有限公司 | Q134: 山西 | R134: 6000 | AD134: 117334 | AE134: / | AF134: 117334 | AG134: 70000 | AH134: 2000 | AI134: 127 | AJ134: 10000 | AK134: 0.0127 | AL134: 127.1 | AM134: 1045.809 | AN134: =AL134/AM134-1 -> -0.8784672918 | AO134: 31.57 | AP134: 46.74 | AQ134: -0.3245614035 | AR134: 6.1962 | AS134: 13.6476 | AT134: -0.5459861074 | AU134: 19 | AV134: 20
A135: 49 | B135: 怀化多喜来食品有限公司 | C135: 914312000558152232 | D135: 正常经营 | E135: 规上 | F135: / | G135: / | H135: 2012年 | I135: 2017年 | K135: 杨海平 | L135: 颜拥军13874528921 | M135: 黄 文18374517245 | N135: 元宵，粽子，月饼，蛋糕，面包等烘焙、糕点类产品 | O135: 面粉 | P135: 深圳南海粮食 | Q135: 广东 | R135: 11 | AD135: 12334 | AE135: / | AF135: 10965 | AG135: 12334 | AH135: 2900 | AI135: 924.4 | AJ135: 2500 | AK135: 0.36976 | AL135: 924.4 | AM135: 867.9 | AN135: =AL135/AM135-1 -> 0.06509966586 | AO135: 4.63 | AP135: 3.65 | AQ135: 0.2684931507 | AR135: 8.1648 | AS135: 8.5207 | AT135: -0.04176886875 | AU135: 53 | AV135: 50
O136: 鸡蛋 | P136: 湖南正大蛋业 | Q136: 怀化 | R136: 110
A137: 50 | B137: 怀化晗升环保新材料有限责任公司 | C137: 91431200MA4QY4WF0Y | D137: 正常经营 | E137: 规上 | F137: / | G137: / | H137: 2021年 | I137: 2022年 | K137: 杨海平 | L137: 周白金13974530117吴钢15274572669 | M137: 辛永明17267021111 | N137: 废旧塑料收购，定向改性塑料加工 | O137: 废旧塑料 | P137: 零散集采 | Q137: / | R137: / | AD137: 13000 | AE137: / | AF137: 13000 | AG137: 6000 | AH137: 8000 | AI137: 1684 | AJ137: 10000 | AK137: 0.1684 | AL137: 1684 | AM137: 498.34 | AN137: =AL137/AM137-1 -> 2.379219007 | AO137: 282.55 | AP137: 195.27 | AQ137: 0.4469708609 | AR137: 3.873 | AS137: 30.042 | AT137: -0.8710804873 | AU137: 15
A138: 51 | B138: 怀化刚成食品有限公司 | C138: 91431200MA4L75G74R | D138: 正常经营 | E138: 规下 | F138: / | G138: / | H138: 2016年 | I138: / | K138: 杨海平 | L138: 杨春军13974538946 | M138: 蒲春柳18874565518 | N138: 调味品（固态，半固态） | O138: 食用盐 | P138: 彭红检 | Q138: 四川 | R138: 1 | AD138: 1557 | AE138: 1557 | AF138: / | AG138: / | AH138: 480 | AI138: 100 | AJ138: 450 | AK138: 0.2222222222 | AL138: / | AM138: / | AN138: / | AO138: 0.88 | AP138: 4.71 | AQ138: -0.813163482 | AR138: 3.05 | AS138: 3.992 | AT138: -0.2359719439 | AU138: 35
O139: 白砂糖 | P139: 丁辞英 | Q139: 广西 | R139: 10
A140: 52 | B140: 怀化金扬商用设备有限公司 | C140: 91431200MA4M19EK75 | D140: 正常经营 | E140: 规上 | F140: / | G140: / | H140: 2017年 | I140: 2019年 | J140: 财评专项工作 | K140: 滕建华 | L140: 玲 梅13973087695 | M140: 杨立良17365786999 | N140: 商超设备，货架，仓储货架 | O140: 不锈钢管材和板材 | P140: / | Q140: 佛山 | R140: 50 | AD140: 2000 | AE140: 2000 | AF140: / | AG140: / | AH140: 600 | AI140: 100 | AJ140: 1000 | AK140: 0.1 | AL140: 0 | AM140: 392.5 | AN140: =AL140/AM140-1 -> -1 | AO140: 0 | AP140: 6.11 | AQ140: -1 | AR140: 0.19 | AS140: 0.63 | AT140: -0.6984126984 | AU140: 12
O141: 铁质管材和管材 | P141: / | Q141: 佛山 | R141: 50
O142: 铝合金型材 | P142: / | Q142: 苏州 | R142: 10
O143: 实木板材 | P143: / | Q143: 怀化，苏州 | R143: 50
O144: 玻璃 | P144: / | Q144: 怀化 | R144: 5
O145: 塑料型材 | P145: / | Q145: 苏州 | R145: 5
A146: 53 | B146: 怀化富桓节能科技有限公司 | C146: 91431200053878095U | D146: 正常经营 | E146: 规上 | F146: / | G146: / | H146: 2018年 | I146: 2023年 | K146: 滕建华 | L146: 伍俊雄15096255215 | M146: 袁圣安13787511159 | N146: 玻璃、门窗制造、加工、销售；金属矿石、金属制品销售等 | O146: 玻璃原片 | P146: 湖南旗滨节能玻璃有限公司 | Q146: 湖南株洲醴陵 | R146: 1200 | AD146: 21494 | AE146: / | AF146: 21494 | AG146: 1732.25 | AH146: 2200 | AI146: 122.548 | AJ146: 2000 | AK146: 0.061274 | AL146: 122.548 | AM146: 0 | AN146: 1 | AO146: 0.06 | AP146: 3.87 | AQ146: -0.984496124 | AR146: 4.8299 | AS146: 24.7869 | AT146: -0.8051430393 | AU146: 22
O147: 夹胶水 | P147: 湖南豪兴五金有限公司 | Q147: 长沙 | R147: 30
O148: 硅酮胶 | P148: 怀化腾亮建筑材料有限公司 | Q148: 怀化 | R148: 60
O149: 铝条、分子筛 | P149: 怀化腾亮建筑材料有限公司 | Q149: 怀化 | R149: 24
A150: 54 | B150: 湖南驰迪家具有限公司 | C150: 91431200MA4R85DL0E | D150: 正常经营 | E150: 规下 | F150: / | G150: / | H150: 2020年 | I150: / | K150: 李 旭 | L150: 钟 军13787529587 | M150: 肖华政13307453424 | N150: 定制家居产品 | O150: 板材 | P150: 兔宝宝等 | Q150: 湖南 | R150: 260 | AD150: 13209.08 | AE150: / | AF150: 12597.2 | AG150: 6000 | AH150: 800 | AI150: 40 | AJ150: 1200 | AK150: 0.03333333333 | AL150: / | AM150: / | AN150: / | AO150: 0 | AP150: 0.15 | AQ150: -1 | AR150: 4.818 | AS150: 2.7985 | AT150: 0.721636591 | AU150: 28
O151: 原木 | P151: 张家港港口（美国、东南亚） | Q151: 张家港港口（美国、东南亚） | R151: 260
A152: 55 | B152: 湖南龙科电力设备有限公司 | C152: 91431200MA4P9CXGX4 | D152: 正常经营 | E152: 规下 | F152: / | G152: / | H152: 2018年 | I152: / | J152: 办公室 | K152: 杨海平 | L152: 陈 微15115250005 张 林18890669306 舒丽霞15107450603 | M152: 南 杰 13757772963 | N152: 高低压配电柜 | O152: 铜排 | P152: 格尚 | Q152: 温州 | R152: 100 | AD152: 2800 | AE152: 1000 | AF152: / | AG152: / | AH152: 600 | AI152: 100 | AJ152: 700 | AK152: 0.1428571429 | AL152: / | AM152: / | AN152: / | AO152: 15.76 | AP152: 20.04 | AQ152: -0.2135728543 | AR152: 0.182 | AS152: 0.04 | AT152: 3.55 | AU152: 8
O153: 电器开关 | P153: 德力西 | Q153: 温州 | R153: 100
O154: 壳体 | P154: 朗月 | Q154: 温州 | R154: 200
A155: 56 | B155: 湖南绿舟新型材料科技有限公司 | C155: 91431200MA4PFDMH3W | D155: 正常经营 | E155: 规下 | F155: / | G155: / | H155: 2018年 | I155: / | K155: 张永灿 | L155: 唐守亮17774577477 陈雨萌19174580886 | M155: 杨中云 13607418769 | N155: 免漆板、木工板、杉木拼板 | O155: 桉木皮 | P155: 河池市宜州区闽桂鑫木材 | Q155: 广西 | R155: 50 | AD155: 5417 | AE155: / | AF155: 12544 | AG155: 5417 | AH155: 764.56 | AI155: 50 | AJ155: 770 | AK155: 0.06493506494 | AL155: / | AM155: / | AN155: / | AO155: 2.69 | AP155: 3.25 | AQ155: -0.1723076923 | AR155: 5.9728 | AS155: 10.3002 | AT155: -0.4201277645 | AU155: 28
A156: 57 | B156: 湖南恒升家具有限责任公司 | C156: 91431200MA4PG8399L | D156: 正常经营 | E156: 规下 | F156: / | G156: / | H156: 2018年 | I156: / | K156: 张永灿 | L156: 吴湘怀15211599797 王尧峰15674515975 | M156: 张晓玲19374526090 | N156: 实木家具，木门，柜子 | O156: 樱桃木、红橡木 | P156: 东莞市宏福木业有限公司 | Q156: 北美 | R156: 300 | AD156: 10128 | AE156: / | AF156: 10128 | AG156: 2100 | AH156: 220 | AI156: 22 | AJ156: 240 | AK156: 0.09166666667 | AL156: / | AM156: / | AN156: / | AO156: 0 | AP156: / | AQ156: / | AR156: 0 | AS156: 1.145 | AT156: -1 | AU156: 30
F157: / | G157: / | O157: 卡斯拉、桃花芯、黄金檀、柚木 | P157: 东莞市达林木业有限公司 | Q157: 缅甸 | R157: 500
A158: 28 | B158: 湖南通八洲智能科技有限公司 | C158: 91431200MA4L22CA86 | D158: 正常经营 | E158: 规下 | F158: / | G158: / | H158: 2015年 | I158: / | K158: 李 旭 | L158: 李亮亮 13787508807 肖秋妍13307454881 刘雨心 18174202788 | M158: 刘华强18928408112 | N158: 路障机、智能防逃车位锁、防弹岗亭 | O158: 各种钢材 | P158: / | Q158: 怀化、佛山、无锡、山东 | R158: / | AD158: 1060 | AE158: 1060 | AF158: / | AG158: / | AH158: 80 | AI158: 3 | AJ158: 100 | AK158: 0.03 | AL158: / | AM158: / | AN158: / | AO158: 0.01 | AP158: 0.39 | AQ158: -0.9743589744 | AR158: 0.052 | AS158: 0.066 | AT158: -0.2121212121 | AU158: 6
O159: 各种电机 | P159: / | Q159: 广东、江苏 | R159: /
O160: 电子元器件 | P160: / | Q160: 深圳、上海 | R160: /
A161: 59 | B161: 湖南立坤金属科技有限公司 | C161: 91431200MA4RTW7A0K | D161: 正常经营 | E161: 规下 | F161: / | G161: / | H161: 2021年 | I161: / | K161: 向吉随 | L161: 石超月15115166973 戴健伟15727406688 | M161: 邓宗强13874580505 | N161: 阳台护栏、围栏、楼梯扶手，大门及道路隔离栏杆产品 | O161: 镀锌管 | P161: 霸州市通达金属制品有限公司 | Q161: 河北 | R161: 500 | AD161: 13311.73 | AE161: / | AF161: 13311.73 | AG161: 7238.13 | AH161: 730 | AI161: 120 | AJ161: 770 | AK161: 0.1558441558 | AL161: / | AM161: / | AN161: / | AO161: 0.74 | AP161: 2.38 | AQ161: -0.6890756303 | AR161: 2.9013 | AS161: 2.5774 | AT161: 0.1256692791 | AU161: 16
O162: 铝材 | P162: 湖南盛浩达铁艺配件有限公司 | Q162: 长沙 | R162: 150
O163: 镀锌管 | P163: 永清县隆泰金属制品有限公司 | Q163: 河北 | R163: 150
O164: 锌钢配件 | P164: 长沙诚锐金属材料有限公司 | Q164: 长沙 | R164: 100
A165: 60 | B165: 怀化新希望六和饲料有限公司 | C165: 91431200329477445W | D165: 正常经营 | E165: 规上 | F165: / | G165: / | H165: 2014年 | I165: 2017年 | J165: 行政审批服务局筹建办公室 | K165: 胡迈午 | L165: 梁少华19330708975 王 婕13874551633 | M165: 杨序云13319610062 | N165: 畜禽、水产、反刍动物饲料生产 | O165: 玉米、豆粕等 | P165: / | Q165: 全国各地经销商，属于大宗商品采购，由总部负责集采 | R165: / | AD165: 13500 | AE165: / | AF165: 24000 | AG165: 13500 | AH165: 52300 | AI165: 5143.238 | AJ165: 40000 | AK165: 0.12858095 | AL165: 5143.238 | AM165: 12857.5 | AN165: =AL165/AM165-1 -> -0.5999814894 | AO165: 183.19 | AP165: 85.62 | AQ165: 1.139570194 | AR165: 49.5475 | AS165: 78.8582 | AT165: -0.3716886766 | AU165: 104
A166: 61 | B166: 怀化市湘溆科技体育用品有限公司 | C166: 91431200MA4PGD6AXQ | D166: 正常经营 | E166: 规上 | F166: / | G166: / | H166: 2018年 | I166: 2021年 | K166: 胡迈午 | L166: 李 希18075588368 胡美玲18569404887 | M166: 李 海15605896468 | N166: 各类乳胶健身器材、体育用品 | O166: 天然乳胶 | P166: 通过广东经销商进口 | Q166: 泰国 | R166: 480 | AD166: 2500 | AE166: 2500 | AF166: / | AG166: / | AH166: 1000 | AI166: 175.16 | AJ166: 175.16 | AK166: 1 | AL166: 175.16 | AM166: 246.58 | AN166: -0.2896423068 | AO166: 3.21 | AP166: 25.05 | AQ166: -0.8718562874 | AR166: 28.5114 | AS166: 23.694 | AT166: 0.2033172955 | AU166: 50
A167: 62 | B167: 怀化华宏印务有限公司 | C167: 9143120056593461XX | D167: 正常经营 | E167: 规上 | F167: / | G167: / | H167: 2010年 | I167: 2013年 | K167: 胡迈午 | L167: 李 希18075588368 邓 飞18944927984 | M167: 李小芳18229765256 | N167: 包装纸箱 | O167: 原纸 | P167: 玖龙（东莞）纸业有限公司 | Q167: 东莞 | R167: 2500 | AD167: 55333 | AE167: / | AF167: 26680 | AG167: 26680 | AH167: 3900 | AI167: 793.825 | AJ167: 793.825 | AK167: 1 | AL167: 793.825 | AM167: 1044.404 | AN167: -0.2399253546 | AO167: 6.56 | AP167: 17.54 | AQ167: -0.6259977195 | AR167: 16.8256 | AS167: 17.7665 | AT167: -0.05295922101 | AU167: 60
O168: 原纸 | P168: 玖龙纸业（湖北）有限公司 | Q168: 湖北
A169: 63 | B169: 湖南省富盈精密科技有限公司 | C169: 91431200MA4PPBCK3B | D169: 正常经营 | E169: 规下 | F169: / | G169: / | H169: 2018年 | I169: / | K169: 胡迈午 | L169: 梁少华19330708975 李 伟18274566364 | M169: 吴刚13790650559 | N169: 精密零配件非标定制 | O169: 特种钢材 | P169: 广东经销商 | Q169: 国外进口 | R169: 200 | AD169: 3000 | AE169: 3000 | AF169: / | AG169: / | AH169: / | AI169: / | AJ169: / | AK169: / | AL169: / | AM169: / | AN169: / | AO169: 9.17 | AP169: 13.86 | AQ169: -0.3383838384 | AR169: 10.1929 | AS169: 8.9409 | AT169: 0.1400306457 | AU169: 40
A170: 64 | B170: 湖南意风环保科技有限公司 | C170: 91431200MA4PJKG661 | D170: 正常经营 | E170: 规上 | F170: / | G170: / | H170: 2018年 | I170: 2021年 | J170: 纪工委监工委 （督查专项） | K170: 胡迈午 | L170: 沈思思15274552566 | M170: 钟燕羽15574566299 | N170: PE、PP贸易 | O170: PP、PE | P170: 中石油、中石化 | Q170: 新疆、甘肃 | R170: 8500 | AD170: 33000 | AE170: / | AF170: 33000 | AG170: 15000 | AH170: 10000 | AI170: 0 | AJ170: 9000 | AK170: 0 | AL170: 0 | AM170: 203 | AN170: =AL170/AM170-1 -> -1 | AO170: 7.57 | AP170: 5.58 | AQ170: 0.3566308244 | AR170: 19.9312 | AS170: 25.4687 | AT170: -0.2174237397 | AU170: 5
A171: 65 | B171: 怀化奥晟科技有限公司 | C171: 91431200565920090M | D171: 正常经营 | E171: 规上 | F171: / | G171: / | H171: 2012年 | I171: 2014年 | K171: 胡迈午 | L171: 肖 鹏15211510607 | M171: 罗志青13974510123 | N171: 羧甲基纤维素钠 | O171: 纯碱 | P171: 冷水江金富源碱业有限公司 | Q171: 湖南冷水江 | R171: 450 | AD171: 43335.5 | AE171: / | AF171: 43335.5 | AG171: 14000 | AH171: 4100 | AI171: 993.6 | AJ171: 6000 | AK171: 0.1656 | AL171: 993.6 | AM171: 877.868 | AN171: =AL171/AM171-1 -> 0.1318330318 | AO171: 41.66 | AP171: 23.92 | AQ171: 0.741638796 | AR171: 52.543 | AS171: 49.5671 | AT171: 0.06003780734 | AU171: 95
O172: 棉浆粕 | P172: 安徽雪龙新材料（集团）有限公司 | Q172: 安徽宿州 | R172: 5000
A173: 66 | B173: 湖南佳仁门业有限公司 | C173: 91431200MA7BLWQA90 | D173: 正常经营 | E173: 规下 | F173: / | G173: / | H173: 2021年 | I173: / | K173: 胡迈午 | L173: 周雅玲15874529788 | M173: 张 彪13637403925 | N173: 金属门窗 | O173: 锌合金 | P173: 鞍钢集团/武钢集团 化工企业 | Q173: 上海/武汉 | R173: 300 | AD173: 4300 | AE173: 4300 | AF173: / | AG173: / | AH173: 580 | AI173: 70 | AJ173: 700 | AK173: 0.1 | AL173: / | AM173: / | AN173: / | AO173: / | AP173: / | AQ173: / | AR173: / | AS173: / | AT173: / | AU173: 40
O174: 不锈钢转材 | P174: 鞍钢集团/武钢集团 | Q174: 上海/武汉 | R174: 50
O175: 辅助材料（水性油漆） | P175: 化工企业 | Q175: 浙江 | R175: 10
A176: 67 | B176: 湖南金驰新材料科技有限公司 | C176: 91431202MA4PEEC91P | D176: 正常经营 | E176: 规上 | F176: / | G176: / | H176: 2018年 | I176: 2019年 | J176: 高新投 | K176: 胡迈午 | L176: 舒大会13974526557 | M176: 刘银花13975395931 | N176: 混凝土减水剂 | O176: 减水剂聚醚单体 | P176: 广州鑫茂化工科技有限公司 | Q176: 广州 | R176: 400 | AD176: 1500 | AE176: 1500 | AF176: / | AG176: / | AH176: 887 | AI176: 519.5 | AJ176: 1065 | AK176: 0.4877934272 | AL176: 519.5 | AM176: 709.5 | AN176: =AL176/AM176-1 -> -0.2677942213 | AO176: 14.49 | AP176: 13.15 | AQ176: 0.1019011407 | AR176: 0.216 | AS176: 0.183 | AT176: 0.1803278689 | AU176: 15
A177: 68 | B177: 怀化天源污水处理投资有限公司 | C177: 914312006895047189 | D177: 正常经营 | E177: 规上 | F177: / | G177: / | H177: 2009年 | I177: 2018年 | J177: 开发建设局 | K177: 吕轶雄 | L177: 杨兴江 18075566413 | M177: 陈鹏举13922175588 | N177: 水处理 | O177: PAC | P177: 长沙弗雷德环保科技有限公司 | Q177: / | R177: 1100 | AD177: 47357 | AE177: / | AF177: 47357 | AG177: 47357 | AH177: 2835 | AI177: 697 | AJ177: 2800 | AK177: 0.2489285714 | AL177: 696.483 | AM177: 668.5 | AN177: =AL177/AM177-1 -> 0.04185938669 | AO177: 22.94 | AP177: 9.12 | AQ177: 1.515350877 | AR177: 83.8019 | AS177: 88.1254 | AT177: -0.04906077022 | AU177: 34
A178: 69 | B178: 湖南海联食品有限责任公司 | C178: 91431200745939282H | D178: 正常经营 | E178: 规上 | F178: / | G178: / | H178: 2007年 | I178: 2008年 | J178: 城市公共服务中心 | K178: 吕轶雄 | L178: 陈 巍18674598005 | M178: 赵建喜13807452545 | N178: 水果罐头、饮料、果干 | O178: 柑桔、桃、梨 | P178: 怀化农业合作社 | Q178: 怀化 | R178: 2000 | AD178: 41725 | AE178: / | AF178: 41725 | AG178: / | AH178: 5500 | AI178: 1353.801 | AJ178: 7000 | AK178: 0.1934001429 | AL178: 1353.801 | AM178: 1255.315 | AN178: =AL178/AM178-1 -> 0.07845520845 | AO178: 100.15 | AP178: 42.79 | AQ178: 1.340500117 | AR178: 8.7612 | AS178: 10.3776 | AT178: -0.1557585569 | AU178: 56
O179: 玻璃瓶 | P179: 湖南华兴玻璃有限公司 | Q179: 益阳 | R179: 1500
O180: 瓶盖 | P180: 无锡华鹏瓶盖有限公司 | Q180: 无锡 | R180: 350
O181: 白糖 | P181: 广西糖业集团 | Q181: 南宁 | R181: 500
A182: 70 | B182: 怀化强科建筑材料有限公司 | C182: 91431200MA4R7KHY8M | D182: 正常经营 | E182: 规上 | F182: / | G182: / | H182: 2020年 | I182: 2021年 | K182: 杨海平 | L182: 刘家广15274509748 | M182: 杨 春13787590458 | N182: 高砼、砂石 | O182: 石块 | P182: 高新区一部分，周边区域购一部分 | Q182: 高新区（及周边） | R182: 800 | AD182: 33300 | AE182: / | AF182: 33300 | AG182: / | AH182: 6000 | AI182: 3009.559 | AJ182: 8000 | AK182: 0.376194875 | AL182: 3009.559 | AM182: 3196.339 | AN182: =AL182/AM182-1 -> -0.05843560398 | AO182: 67.27 | AP182: 84.3 | AQ182: -0.2020166074 | AR182: 19.4805 | AS182: 19.6186 | AT182: -0.007039238274 | AU182: 45
O183: 水泥 | P183: 怀化梆硬贸易公司 | Q183: 怀化泸阳、贵州 | R183: 1800
O184: 煤灰 | P184: 怀化 | Q184: 怀化 | R184: 300
O185: 矿粉 | P185: 怀化 | Q185: 怀化 | R185: 300
A186: 71 | B186: 湖南九木堂家具有限责任公司 | C186: 91431200MA4L1BFUX3 | D186: 正常经营 | E186: 规下 | F186: / | G186: / | H186: 2017年 | I186: / | J186: 综合行政执法大队 | K186: 向吉随 | L186: 张 晶15096226500 杨 刚15576563903 | M186: 佘应志13874539544 | N186: 家具生产、销售、批发 | O186: 家具板 | P186: 鲁丽木业 | Q186: 广西柳州 | R186: 300 | AD186: 4000 | AE186: / | AF186: 4000 | AG186: 2000 | AH186: 1200 | AI186: 300 | AJ186: 1300 | AK186: 0.2307692308 | AL186: / | AM186: / | AN186: / | AO186: 0.17 | AP186: 0.33 | AQ186: -0.4848484848 | AR186: / | AS186: / | AT186: / | AU186: 30
O187: 家具板 | P187: 乔伟生态科技 | Q187: 怀化高新区 | R187: 200
A188: 72 | B188: 湖南天润发油脂有限公司 | C188: 91431200MA4QKUJ85F | D188: 正常经营 | E188: 规下 | F188: / | G188: / | H188: 2019年 | I188: / | K188: 向吉随 | L188: 孙 为15399951111 赵剑锋15074598521 | M188: 彭艳君13974519500 | N188: 茶油、油粕 | O188: 茶籽 | P188: 洪江市远军油业有限公司 | Q188: 湖南 | R188: 200 | AD188: 8305 | AE188: / | AF188: 3723 | AG188: 8305 | AH188: 943 | AI188: 1400 | AJ188: 2200 | AK188: 0.6363636364 | AL188: / | AM188: / | AN188: / | AO188: 4.74 | AP188: 1.27 | AQ188: 2.732283465 | AR188: 5.7616 | AS188: 1.1559 | AT188: 3.984514231 | AU188: 19
O189: 茶饼 | P189: 洪江市远军油业有限公司 | Q189: 湖南 | R189: 600
O190: 茶饼 | P190: 三江县谷宇油茶农民专业合作社 | Q190: 广西 | R190: 1500
A191: 73 | B191: 湖南本业绿色防控科技股份有限公司 | C191: 91431200561721430F | D191: 正常经营 | E191: 规上 | F191: / | G191: / | H191: 2021年 | I191: 2018年 | J191: 市自然资源和规划局高新区分局 | K191: 张 捍 | L191: 李 然13874472825 | M191: 蔡夫业18174508888 | N191: 捕虫器、诱虫灯、山地轨道运输车 | O191: 塑料件 | P191: 浙江亨达塑料模具有限公司 | Q191: 台州 | R191: 100 | AD191: 15000 | AE191: / | AF191: 105333 | AG191: 57130 | AH191: 1755.7 | AI191: 243.8 | AJ191: 3000 | AK191: 0.08126666667 | AL191: 243.8 | AM191: 229.2 | AN191: =AL191/AM191-1 -> 0.06369982548 | AO191: 0.65 | AP191: 0.83 | AQ191: -0.2168674699 | AR191: 东尤共用 | AU191: 40
O192: 电池 | P192: 德润新能源（深圳）有限公司 | Q192: 深圳 | R192: 150
O193: 太阳能板 | P193: 深圳市壹优新能源有限公司 | Q193: 深圳 | R193: 104
O194: 诱捕器 | P194: 英格尔农业科技有限公司 | Q194: 漳州市 | R194: 70
A195: 74 | B195: 怀化傲农生物科技有限公司 | C195: 91431200MA4P8R1C99 | D195: 正常经营 | E195: 规上 | F195: / | G195: / | H195: 2021年 | I195: 2022年 | K195: 向吉随 | L195: 侯德辉13907452456 | M195: 黄友斌17775926888 | N195: 配合饲料、浓缩饲料 | O195: 玉米 | P195: 吉首世方粮油有限公司等 | Q195: 东北 | R195: 3180 | AD195: 26135 | AE195: / | AF195: 26135 | AG195: 14875.9 | AH195: 10507 | AI195: 2400 | AJ195: 12000 | AK195: 0.2 | AL195: 2400.8 | AM195: 3156.2 | AN195: =AL195/AM195-1 -> -0.239338445 | AO195: 1.08 | AP195: 16.06 | AQ195: -0.9327521793 | AR195: 13.1334 | AS195: 26.737 | AT195: -0.5087930583 | AU195: 51
O196: 豆粕 | P196: 湖南三颗星有限公司等 | Q196: 广东 | R196: 1254.6
O197: 面粉 | P197: 武汉禾满家粮油有限公司等 | Q197: 东北 | R197: 427.8
O198: 粗麸 | P198: 荆门市屈家岭管理区福利面粉厂 | Q198: 东北 | R198: 300
A199: 75 | B199: 怀化市正泰农机装备有限公司 | C199: 91431200553020503C | D199: 正常经营 | E199: 规下 | F199: / | G199: / | H199: 2022年 | I199: / | K199: 张 捍 | L199: 成佳佳13874551234 | M199: 蔡海波1340745999 | N199: 机电配件 | O199: 机电配件 | P199: / | Q199: 浙江 | R199: / | AD199: 4000 | AE199: 4000 | AF199: / | AG199: / | AH199: 1800 | AI199: 450 | AJ199: 2000 | AK199: 0.225 | AL199: / | AM199: / | AN199: / | AO199: 0 | AP199: 5.14 | AQ199: -1 | AR199: 东尤共用 | AU199: 40
N200: 钢材 | O200: 钢材 | P200: / | Q200: 河北、天津 | R200: /
... 46 more rows
